[Event "*** Titled Tuesday Blitz"]
[Site "Chess.com"]
[Date "2021.04.06"]
[Round "1"]
[White "Steven_Rojas"]
[Black "evgchess5"]
[Result "0-1"]
[WhiteElo "2461"]
[BlackElo "2932"]
[TimeControl "180+1"]
[EndTime "10:07:04 PDT"]
[Termination "evgchess5 won by checkmate"]

1. c4 {[%clk 0:03:00.9]} 1... c5 {[%clk 0:02:58.6]} 2. Nf3 {[%clk 0:02:59.9]}
2... Nc6 {[%clk 0:02:58.2]} 3. e3 {[%clk 0:02:59.5]} 3... Nf6 {[%clk 0:02:56.2]}
4. Nc3 {[%clk 0:02:59.6]} 4... e6 {[%clk 0:02:54.7]} 5. d4 {[%clk 0:02:59.1]}
5... d5 {[%clk 0:02:54.6]} 6. cxd5 {[%clk 0:02:55.6]} 6... exd5 {[%clk
0:02:52.1]} 7. Bb5 {[%clk 0:02:55.1]} 7... Bd6 {[%clk 0:02:47.3]} 8. dxc5 {[%clk
0:02:37.8]} 8... Bxc5 {[%clk 0:02:46.5]} 9. O-O {[%clk 0:02:37.9]} 9... O-O
{[%clk 0:02:46.4]} 10. b3 {[%clk 0:02:34.7]} 10... Qd6 {[%clk 0:02:28.9]} 11. h3
{[%clk 0:02:26.1]} 11... a6 {[%clk 0:02:11.5]} 12. Bxc6 {[%clk 0:02:19.3]} 12...
bxc6 {[%clk 0:02:11.4]} 13. Bb2 {[%clk 0:02:19.9]} 13... Re8 {[%clk 0:01:57.7]}
14. Rc1 {[%clk 0:02:16.4]} 14... Ba7 {[%clk 0:01:57.3]} 15. Qc2 {[%clk
0:02:08.9]} 15... c5 {[%clk 0:01:43.3]} 16. Rfd1 {[%clk 0:02:08.6]} 16... Bb7
{[%clk 0:01:41.2]} 17. Qf5 {[%clk 0:02:05.8]} 17... Qe6 {[%clk 0:01:36.2]} 18.
Qf4 {[%clk 0:01:55.5]} 18... h6 {[%clk 0:01:22.4]} 19. Ba1 {[%clk 0:00:53]}
19... Rac8 {[%clk 0:01:18.1]} 20. Ne2 {[%clk 0:00:44.9]} 20... Ne4 {[%clk
0:01:14.4]} 21. Qh4 {[%clk 0:00:41]} 21... g5 {[%clk 0:00:53.6]} 22. Qh5 {[%clk
0:00:31.4]} 22... Bb8 {[%clk 0:00:47.5]} 23. h4 {[%clk 0:00:09.7]} 23... g4
{[%clk 0:00:37.2]} 24. Ne1 {[%clk 0:00:10.1]} 24... Nxf2 {[%clk 0:00:31.4]} 25.
Kxf2 {[%clk 0:00:03.7]} 25... Qxe3+ {[%clk 0:00:31.1]} 26. Kf1 {[%clk
0:00:04.6]} 26... Qxe2+ {[%clk 0:00:29.4]} 27. Kg1 {[%clk 0:00:05.5]} 27... Qe3+
{[%clk 0:00:26.5]} 28. Kh1 {[%clk 0:00:05.5]} 28... Qg3 {[%clk 0:00:23.9]} 29.
Kg1 {[%clk 0:00:05.8]} 29... Re2 {[%clk 0:00:18.7]} 30. Qxh6 {[%clk 0:00:05]}
30... Qf2+ {[%clk 0:00:15.5]} 31. Kh1 {[%clk 0:00:05]} 31... Qf1# {[%clk
0:00:15.6]} 0-1

[Event "*** Titled Tuesday Blitz"]
[Site "Chess.com"]
[Date "2021.04.06"]
[Round "1"]
[White "SergioGarciaFuentes"]
[Black "PchelkinVK"]
[Result "1-0"]
[WhiteElo "2319"]
[BlackElo "2590"]
[TimeControl "180+1"]
[EndTime "10:07:04 PDT"]
[Termination "SergioGarciaFuentes won by resignation"]

1. Nf3 {[%clk 0:02:59.6]} 1... d5 {[%clk 0:02:54]} 2. g3 {[%clk 0:02:58.8]} 2...
Nc6 {[%clk 0:02:54.2]} 3. d4 {[%clk 0:02:57.8]} 3... Bg4 {[%clk 0:02:53.7]} 4.
Bg2 {[%clk 0:02:57.8]} 4... Qd7 {[%clk 0:02:52.8]} 5. O-O {[%clk 0:02:58.2]}
5... O-O-O {[%clk 0:02:46.4]} 6. c4 {[%clk 0:02:53.4]} 6... e6 {[%clk
0:02:23.5]} 7. Nc3 {[%clk 0:02:37]} 7... Bxf3 {[%clk 0:02:23.7]} 8. Bxf3 {[%clk
0:02:36.1]} 8... Nf6 {[%clk 0:02:23.7]} 9. Bg5 {[%clk 0:02:09.9]} 9... Be7
{[%clk 0:02:20.6]} 10. Bxf6 {[%clk 0:01:52.5]} 10... Bxf6 {[%clk 0:02:20.7]} 11.
e3 {[%clk 0:01:52.8]} 11... Ne7 {[%clk 0:01:58.2]} 12. Rc1 {[%clk 0:01:45.3]}
12... Kb8 {[%clk 0:01:54.1]} 13. Qb3 {[%clk 0:01:24.7]} 13... b6 {[%clk
0:01:27.2]} 14. Rfd1 {[%clk 0:01:14.1]} 14... h5 {[%clk 0:01:22.4]} 15. cxd5
{[%clk 0:00:51.1]} 15... Nxd5 {[%clk 0:01:05]} 16. Ne4 {[%clk 0:00:50.4]} 16...
Be7 {[%clk 0:01:01.9]} 17. Nc5 {[%clk 0:00:42.4]} 17... Qc8 {[%clk 0:00:48.5]}
18. e4 {[%clk 0:00:34.7]} 18... Nf6 {[%clk 0:00:43.4]} 19. Qb5 {[%clk
0:00:24.2]} 19... c6 {[%clk 0:00:33.2]} 20. Na6+ {[%clk 0:00:23.3]} 20... Kb7
{[%clk 0:00:33.2]} 21. Qa4 {[%clk 0:00:17.5]} 21... h4 {[%clk 0:00:28.1]} 22.
Rc3 {[%clk 0:00:15.9]} 22... hxg3 {[%clk 0:00:26.9]} 23. hxg3 {[%clk 0:00:14.9]}
23... Rd7 {[%clk 0:00:10.5]} 24. Rdc1 {[%clk 0:00:14.6]} 24... Rc7 {[%clk
0:00:09]} 25. Nxc7 {[%clk 0:00:13.5]} 25... Qxc7 {[%clk 0:00:09.9]} 26. Rxc6
{[%clk 0:00:13.2]} 26... Qd7 {[%clk 0:00:10.3]} 27. e5 {[%clk 0:00:09]} 27...
Nd5 {[%clk 0:00:10]} 28. Rc7+ {[%clk 0:00:09.2]} 28... Qxc7 {[%clk 0:00:09]} 29.
Rxc7+ {[%clk 0:00:09.6]} 29... Kxc7 {[%clk 0:00:09.9]} 30. Bxd5 {[%clk
0:00:09.4]} 30... exd5 {[%clk 0:00:09.7]} 31. Qxa7+ {[%clk 0:00:10]} 31... Kd8
{[%clk 0:00:08.9]} 32. Qb8+ {[%clk 0:00:09.7]} 1-0

[Event "*** Titled Tuesday Blitz"]
[Site "Chess.com"]
[Date "2021.04.06"]
[Round "1"]
[White "Kostya_Nikologorskiy"]
[Black "Diaschess88"]
[Result "1-0"]
[WhiteElo "2669"]
[BlackElo "2355"]
[TimeControl "180+1"]
[EndTime "10:07:05 PDT"]
[Termination "Kostya_Nikologorskiy won on time"]

1. c4 {[%clk 0:03:00.2]} 1... c6 {[%clk 0:02:59.4]} 2. Nc3 {[%clk 0:02:59.2]}
2... d5 {[%clk 0:03:00.3]} 3. d4 {[%clk 0:03:00.1]} 3... Nf6 {[%clk 0:02:59.9]}
4. Nf3 {[%clk 0:02:58.1]} 4... e6 {[%clk 0:03:00.1]} 5. e3 {[%clk 0:02:58.4]}
5... Nbd7 {[%clk 0:02:59.8]} 6. Qc2 {[%clk 0:02:59]} 6... Bd6 {[%clk 0:02:57.5]}
7. g4 {[%clk 0:02:59.2]} 7... Nxg4 {[%clk 0:02:55.7]} 8. Rg1 {[%clk 0:02:59.4]}
8... f5 {[%clk 0:02:55.9]} 9. h3 {[%clk 0:02:58.8]} 9... Nh6 {[%clk 0:02:56.3]}
10. Rxg7 {[%clk 0:02:57.7]} 10... Qf6 {[%clk 0:02:56.9]} 11. Rg1 {[%clk
0:02:54.6]} 11... Nf7 {[%clk 0:02:48.3]} 12. Bd2 {[%clk 0:02:51.8]} 12... Qe7
{[%clk 0:02:35.8]} 13. O-O-O {[%clk 0:02:46.5]} 13... Nf6 {[%clk 0:02:35.6]} 14.
cxd5 {[%clk 0:02:37.7]} 14... exd5 {[%clk 0:02:36.5]} 15. Kb1 {[%clk 0:02:33.3]}
15... Ne4 {[%clk 0:02:35.8]} 16. Be1 {[%clk 0:02:31.1]} 16... Be6 {[%clk
0:02:29]} 17. Rc1 {[%clk 0:02:00.8]} 17... Kf8 {[%clk 0:01:24.4]} 18. Ne2 {[%clk
0:01:51.8]} 18... Rg8 {[%clk 0:01:09.8]} 19. Rxg8+ {[%clk 0:01:51.4]} 19... Kxg8
{[%clk 0:01:10.7]} 20. Nf4 {[%clk 0:01:52.2]} 20... Bd7 {[%clk 0:01:02.8]} 21.
Bd3 {[%clk 0:01:49.9]} 21... Kh8 {[%clk 0:00:21.8]} 22. Bc3 {[%clk 0:01:43.3]}
22... Rg8 {[%clk 0:00:20.1]} 23. h4 {[%clk 0:01:35.6]} 23... Rg4 {[%clk
0:00:16]} 24. Nh3 {[%clk 0:01:18.2]} 24... Kg8 {[%clk 0:00:10.6]} 25. Qb3 {[%clk
0:01:12.2]} 25... b6 {[%clk 0:00:09.5]} 26. Be1 {[%clk 0:01:03.2]} 26... a5
{[%clk 0:00:08.8]} 27. Nd2 {[%clk 0:01:02.2]} 27... Bb4 {[%clk 0:00:07.5]} 28.
Nxe4 {[%clk 0:00:54.3]} 28... fxe4 {[%clk 0:00:07.5]} 29. Be2 {[%clk 0:00:54.8]}
29... Rxh4 {[%clk 0:00:06.2]} 30. Nf4 {[%clk 0:00:54]} 30... Kf8 {[%clk
0:00:03.9]} 31. a3 {[%clk 0:00:50.8]} 31... Bxe1 {[%clk 0:00:03.4]} 32. Rxe1
{[%clk 0:00:51.7]} 32... b5 {[%clk 0:00:03.7]} 33. Rg1 {[%clk 0:00:50]} 33...
Ng5 {[%clk 0:00:03.3]} 34. Qc3 {[%clk 0:00:50.1]} 34... a4 {[%clk 0:00:02.6]}
35. Qa5 {[%clk 0:00:50.1]} 35... Kf7 {[%clk 0:00:02.5]} 36. Qc7 {[%clk
0:00:47.7]} 36... h6 {[%clk 0:00:02.5]} 37. Bh5+ {[%clk 0:00:46]} 37... Kf6
{[%clk 0:00:02.4]} 38. Qe5+ {[%clk 0:00:38.2]} 38... Qxe5 {[%clk 0:00:02.2]} 39.
dxe5+ {[%clk 0:00:39.1]} 39... Kg7 {[%clk 0:00:01.4]} 40. e6 {[%clk 0:00:39.3]}
1-0

[Event "*** Titled Tuesday Blitz"]
[Site "Chess.com"]
[Date "2021.04.06"]
[Round "1"]
[White "Mikhail_Golubev"]
[Black "Grineva_Marianna"]
[Result "1-0"]
[WhiteElo "2560"]
[BlackElo "2241"]
[TimeControl "180+1"]
[EndTime "10:07:07 PDT"]
[Termination "Mikhail_Golubev won on time"]

1. e4 {[%clk 0:03:00.9]} 1... c5 {[%clk 0:02:58.2]} 2. Nf3 {[%clk 0:02:59.8]}
2... Nc6 {[%clk 0:02:57.9]} 3. Bb5 {[%clk 0:02:57.9]} 3... g5 {[%clk 0:02:57.7]}
4. Bxc6 {[%clk 0:02:47.1]} 4... dxc6 {[%clk 0:02:56.4]} 5. Nxg5 {[%clk
0:02:43.8]} 5... Nf6 {[%clk 0:02:55.3]} 6. d3 {[%clk 0:02:30]} 6... Rg8 {[%clk
0:02:50.1]} 7. Rg1 {[%clk 0:02:02.2]} 7... h6 {[%clk 0:02:16.9]} 8. Nf3 {[%clk
0:02:00.2]} 8... Bg4 {[%clk 0:02:15.4]} 9. h3 {[%clk 0:01:51]} 9... Bh5 {[%clk
0:01:56.5]} 10. g4 {[%clk 0:01:46.9]} 10... Bg6 {[%clk 0:01:52.5]} 11. Nbd2
{[%clk 0:01:30.7]} 11... e6 {[%clk 0:01:45.6]} 12. Qe2 {[%clk 0:01:29.2]} 12...
Qc7 {[%clk 0:01:36.2]} 13. Nc4 {[%clk 0:01:20.3]} 13... b5 {[%clk 0:01:13.1]}
14. Nce5 {[%clk 0:01:19.7]} 14... Bh7 {[%clk 0:00:37.8]} 15. b3 {[%clk
0:01:19.4]} 15... Bd6 {[%clk 0:00:36.8]} 16. Bb2 {[%clk 0:01:19.3]} 16... Nd7
{[%clk 0:00:34.5]} 17. Nxd7 {[%clk 0:01:18]} 17... Qxd7 {[%clk 0:00:35.4]} 18.
O-O-O {[%clk 0:01:14.9]} 18... Bf4+ {[%clk 0:00:30.8]} 19. Kb1 {[%clk
0:01:14.3]} 19... a5 {[%clk 0:00:26.1]} 20. d4 {[%clk 0:01:00.7]} 20... c4
{[%clk 0:00:21.9]} 21. bxc4 {[%clk 0:01:00.7]} 21... a4 {[%clk 0:00:21.8]} 22.
d5 {[%clk 0:00:48.4]} 22... b4 {[%clk 0:00:14.6]} 23. dxe6 {[%clk 0:00:42.8]}
23... Qxe6 {[%clk 0:00:14.4]} 24. Nd4 {[%clk 0:00:42.7]} 24... Qc8 {[%clk
0:00:10.3]} 25. Nf5 {[%clk 0:00:37.6]} 25... b3 {[%clk 0:00:07.5]} 26. axb3
{[%clk 0:00:33.7]} 26... axb3 {[%clk 0:00:08.4]} 27. cxb3 {[%clk 0:00:33.6]}
27... Qa6 {[%clk 0:00:06.8]} 28. Kc2 {[%clk 0:00:29.4]} 28... Qb6 {[%clk
0:00:05.7]} 29. Ra1 {[%clk 0:00:27.9]} 29... Rb8 {[%clk 0:00:06]} 30. Ra3 {[%clk
0:00:25.4]} 30... Qb4 {[%clk 0:00:06]} 31. Rd1 {[%clk 0:00:21.1]} 31... Kf8
{[%clk 0:00:03.8]} 32. Qf3 {[%clk 0:00:19.5]} 32... Bg5 {[%clk 0:00:01.2]} 33.
Ra4 {[%clk 0:00:18.7]} 1-0

[Event "*** Titled Tuesday Blitz"]
[Site "Chess.com"]
[Date "2021.04.06"]
[Round "1"]
[White "MegaManMusic"]
[Black "Ermito2020"]
[Result "1/2-1/2"]
[WhiteElo "2236"]
[BlackElo "2539"]
[TimeControl "180+1"]
[EndTime "10:07:08 PDT"]
[Termination "Game drawn by repetition"]

1. d4 {[%clk 0:03:00.1]} 1... Nf6 {[%clk 0:02:59.2]} 2. c4 {[%clk 0:02:59.7]}
2... g6 {[%clk 0:02:58]} 3. Nc3 {[%clk 0:02:59.6]} 3... Bg7 {[%clk 0:02:58.4]}
4. e4 {[%clk 0:03:00.3]} 4... d6 {[%clk 0:02:59]} 5. Nf3 {[%clk 0:03:00.8]} 5...
O-O {[%clk 0:02:59.3]} 6. Be2 {[%clk 0:03:01.2]} 6... e5 {[%clk 0:02:59.4]} 7.
O-O {[%clk 0:03:01.8]} 7... Nc6 {[%clk 0:02:59.7]} 8. d5 {[%clk 0:03:02.5]} 8...
Ne7 {[%clk 0:03:00.2]} 9. Ne1 {[%clk 0:03:02.4]} 9... Nd7 {[%clk 0:02:59.6]} 10.
Be3 {[%clk 0:03:02.8]} 10... f5 {[%clk 0:02:59.2]} 11. f3 {[%clk 0:03:03.4]}
11... f4 {[%clk 0:02:56.4]} 12. Bf2 {[%clk 0:03:03.7]} 12... g5 {[%clk 0:02:57]}
13. a4 {[%clk 0:03:03.6]} 13... a5 {[%clk 0:02:55.1]} 14. Nd3 {[%clk 0:03:03.1]}
14... b6 {[%clk 0:02:52.6]} 15. b4 {[%clk 0:03:02.8]} 15... axb4 {[%clk
0:02:53.5]} 16. Nxb4 {[%clk 0:03:03.6]} 16... Nf6 {[%clk 0:02:50]} 17. a5 {[%clk
0:02:42.8]} 17... bxa5 {[%clk 0:02:46.6]} 18. Nc6 {[%clk 0:02:42.9]} 18... Nxc6
{[%clk 0:02:07.3]} 19. dxc6 {[%clk 0:02:43.8]} 19... h5 {[%clk 0:02:05.5]} 20.
Nd5 {[%clk 0:02:35]} 20... Kh7 {[%clk 0:01:57.5]} 21. Be1 {[%clk 0:02:29.4]}
21... Nxd5 {[%clk 0:01:37.8]} 22. Qxd5 {[%clk 0:02:23.8]} 22... a4 {[%clk
0:01:29.8]} 23. Bb4 {[%clk 0:02:19.2]} 23... g4 {[%clk 0:01:28.4]} 24. Rfd1
{[%clk 0:02:11.3]} 24... g3 {[%clk 0:01:27.8]} 25. h3 {[%clk 0:02:08.6]} 25...
Qf6 {[%clk 0:01:20.7]} 26. c5 {[%clk 0:02:07]} 26... Be6 {[%clk 0:01:19.9]} 27.
Qd3 {[%clk 0:02:04.3]} 27... Bb3 {[%clk 0:01:16]} 28. Rd2 {[%clk 0:02:01.2]}
28... dxc5 {[%clk 0:01:11.1]} 29. Bxc5 {[%clk 0:02:02.1]} 29... Qxc6 {[%clk
0:01:08.5]} 30. Bxf8 {[%clk 0:02:01.1]} 30... Rxf8 {[%clk 0:01:07.6]} 31. Qd7
{[%clk 0:02:00.2]} 31... Qc3 {[%clk 0:01:01.9]} 32. Re1 {[%clk 0:01:42.2]} 32...
a3 {[%clk 0:00:58.6]} 33. Qd3 {[%clk 0:01:38.2]} 33... Qc5+ {[%clk 0:00:57.7]}
34. Kh1 {[%clk 0:01:35.8]} 34... Be6 {[%clk 0:00:58.1]} 35. Ra1 {[%clk
0:01:33.8]} 35... a2 {[%clk 0:00:51.8]} 36. Qc2 {[%clk 0:01:32.9]} 36... Qb6
{[%clk 0:00:46.2]} 37. Bc4 {[%clk 0:01:31.9]} 37... Bxc4 {[%clk 0:00:41.1]} 38.
Qxc4 {[%clk 0:01:32.8]} 38... Qb1+ {[%clk 0:00:41.3]} 39. Rd1 {[%clk 0:01:33.1]}
39... Rb8 {[%clk 0:00:40.3]} 40. Qxa2 {[%clk 0:01:29.4]} 40... Qb6 {[%clk
0:00:40.1]} 41. Rac1 {[%clk 0:01:25.7]} 41... c5 {[%clk 0:00:39.4]} 42. Qd5
{[%clk 0:01:24.3]} 42... Rc8 {[%clk 0:00:38.3]} 43. Qd6 {[%clk 0:01:23.6]} 43...
Rc6 {[%clk 0:00:37.7]} 44. Qd7 {[%clk 0:01:22.3]} 44... Rc7 {[%clk 0:00:36.6]}
45. Qf5+ {[%clk 0:01:22.5]} 45... Qg6 {[%clk 0:00:34.3]} 46. Rd6 {[%clk
0:01:17.9]} 46... Qxf5 {[%clk 0:00:32]} 47. exf5 {[%clk 0:01:18.8]} 47... Bf8
{[%clk 0:00:31.2]} 48. Re6 {[%clk 0:01:17.7]} 48... c4 {[%clk 0:00:28.7]} 49.
Rxe5 {[%clk 0:01:17.8]} 49... c3 {[%clk 0:00:28.3]} 50. Re2 {[%clk 0:01:16.8]}
50... Ba3 {[%clk 0:00:25.8]} 51. Rcc2 {[%clk 0:01:10.8]} 51... Rd7 {[%clk
0:00:25.6]} 52. Re1 {[%clk 0:01:10.9]} 52... Bb2 {[%clk 0:00:24.7]} 53. f6
{[%clk 0:01:09.9]} 53... Kg6 {[%clk 0:00:24.2]} 54. Re6 {[%clk 0:01:10.1]} 54...
Kf7 {[%clk 0:00:23.6]} 55. Re1 {[%clk 0:01:09.7]} 55... Kxf6 {[%clk 0:00:22.8]}
56. Kg1 {[%clk 0:01:08.4]} 56... Kf5 {[%clk 0:00:21.8]} 57. Kf1 {[%clk
0:01:08.9]} 57... Rd3 {[%clk 0:00:21.7]} 58. Ke2 {[%clk 0:01:09.2]} 58... Re3+
{[%clk 0:00:21.3]} 59. Kd1 {[%clk 0:01:09.7]} 59... Rd3+ {[%clk 0:00:21.5]} 60.
Ke2 {[%clk 0:01:10.3]} 60... Re3+ {[%clk 0:00:21.6]} 61. Kd1 {[%clk 0:01:10.8]}
61... Rd3+ {[%clk 0:00:20]} 62. Ke2 {[%clk 0:01:09.5]} 1/2-1/2

[Event "*** Titled Tuesday Blitz"]
[Site "Chess.com"]
[Date "2021.04.06"]
[Round "1"]
[White "GelmanAlexander"]
[Black "kekic76"]
[Result "1-0"]
[WhiteElo "2656"]
[BlackElo "2350"]
[TimeControl "180+1"]
[EndTime "10:07:09 PDT"]
[Termination "GelmanAlexander won by checkmate"]

1. d4 {[%clk 0:02:59.3]} 1... d6 {[%clk 0:02:59.1]} 2. Nc3 {[%clk 0:02:56.8]}
2... e5 {[%clk 0:02:57.3]} 3. Nf3 {[%clk 0:02:53.4]} 3... Nc6 {[%clk 0:02:56.8]}
4. dxe5 {[%clk 0:02:47.4]} 4... Nxe5 {[%clk 0:02:57.7]} 5. e4 {[%clk 0:02:44.9]}
5... Nf6 {[%clk 0:02:54.6]} 6. Bf4 {[%clk 0:02:38.6]} 6... Ng6 {[%clk
0:02:51.1]} 7. Be3 {[%clk 0:02:27.9]} 7... Be7 {[%clk 0:02:50.1]} 8. Qd2 {[%clk
0:02:21.5]} 8... O-O {[%clk 0:02:44.6]} 9. O-O-O {[%clk 0:02:20.5]} 9... a6
{[%clk 0:02:38.8]} 10. h4 {[%clk 0:02:16.6]} 10... Ng4 {[%clk 0:02:33.9]} 11.
Bg5 {[%clk 0:02:04.9]} 11... b5 {[%clk 0:02:15.6]} 12. Nd5 {[%clk 0:01:59]}
12... Bxg5 {[%clk 0:02:04.2]} 13. hxg5 {[%clk 0:01:58.8]} 13... Be6 {[%clk
0:01:58.9]} 14. Nd4 {[%clk 0:01:42]} 14... Bxd5 {[%clk 0:01:28.9]} 15. exd5
{[%clk 0:01:41.9]} 15... Re8 {[%clk 0:01:12.9]} 16. g3 {[%clk 0:01:26.9]} 16...
N4e5 {[%clk 0:01:07.3]} 17. f4 {[%clk 0:01:15.7]} 17... Nc4 {[%clk 0:01:04.7]}
18. Qh2 {[%clk 0:01:05.8]} 18... Nf8 {[%clk 0:01:03.5]} 19. Bd3 {[%clk
0:01:00.7]} 19... g6 {[%clk 0:01:01.4]} 20. Nf5 {[%clk 0:00:39.1]} 20... Ne3
{[%clk 0:00:28.6]} 21. Nh6+ {[%clk 0:00:36.3]} 21... Kg7 {[%clk 0:00:28.2]} 22.
Rde1 {[%clk 0:00:37]} 22... Qd7 {[%clk 0:00:18.5]} 23. f5 {[%clk 0:00:29.1]}
23... Re5 {[%clk 0:00:13.3]} 24. f6+ {[%clk 0:00:20.1]} 24... Kh8 {[%clk
0:00:12.1]} 25. Rxe3 {[%clk 0:00:20]} 25... Rxe3 {[%clk 0:00:11.2]} 26. Nf5
{[%clk 0:00:20.1]} 26... Rae8 {[%clk 0:00:07.6]} 27. Qh6 {[%clk 0:00:16.9]}
27... Re1+ {[%clk 0:00:04]} 28. Rxe1 {[%clk 0:00:15.5]} 28... Rxe1+ {[%clk
0:00:01.4]} 29. Kd2 {[%clk 0:00:16]} 29... Ne6 {[%clk 0:00:01.7]} 30. dxe6
{[%clk 0:00:16]} 30... fxe6 {[%clk 0:00:02]} 31. Qf8# {[%clk 0:00:11.9]} 1-0

[Event "*** Titled Tuesday Blitz"]
[Site "Chess.com"]
[Date "2021.04.06"]
[Round "1"]
[White "klimkoj"]
[Black "northridgehawk"]
[Result "0-1"]
[WhiteElo "2590"]
[BlackElo "2319"]
[TimeControl "180+1"]
[EndTime "10:07:09 PDT"]
[Termination "northridgehawk won by resignation"]

1. d4 {[%clk 0:03:00.2]} 1... Nf6 {[%clk 0:02:57.8]} 2. Nf3 {[%clk 0:02:57]}
2... g6 {[%clk 0:02:57.8]} 3. c3 {[%clk 0:02:51.3]} 3... Bg7 {[%clk 0:02:57.6]}
4. g3 {[%clk 0:02:52]} 4... O-O {[%clk 0:02:57.1]} 5. Bg2 {[%clk 0:02:52.9]}
5... d5 {[%clk 0:02:57.6]} 6. O-O {[%clk 0:02:53.8]} 6... c6 {[%clk 0:02:53.6]}
7. Nbd2 {[%clk 0:02:54.7]} 7... Nbd7 {[%clk 0:02:51.8]} 8. Re1 {[%clk
0:02:55.6]} 8... Re8 {[%clk 0:02:51.3]} 9. e4 {[%clk 0:02:56.1]} 9... dxe4
{[%clk 0:02:49.7]} 10. Nxe4 {[%clk 0:02:57]} 10... Nxe4 {[%clk 0:02:48]} 11.
Rxe4 {[%clk 0:02:57.9]} 11... Nf6 {[%clk 0:02:46.8]} 12. Re1 {[%clk 0:02:57.9]}
12... a5 {[%clk 0:02:46.3]} 13. Ne5 {[%clk 0:02:57]} 13... Be6 {[%clk
0:02:44.6]} 14. Nd3 {[%clk 0:02:50.7]} 14... a4 {[%clk 0:02:36.7]} 15. Nc5
{[%clk 0:02:50.2]} 15... Bc8 {[%clk 0:02:27.3]} 16. Nxa4 {[%clk 0:02:41.2]}
16... Nd7 {[%clk 0:02:17.1]} 17. Nc5 {[%clk 0:02:29.1]} 17... Nxc5 {[%clk
0:02:16.4]} 18. dxc5 {[%clk 0:02:30]} 18... Qa5 {[%clk 0:02:15.7]} 19. Be3
{[%clk 0:02:27.9]} 19... Be6 {[%clk 0:02:14.9]} 20. a4 {[%clk 0:02:21.4]} 20...
Red8 {[%clk 0:02:15.1]} 21. Qc2 {[%clk 0:02:14.7]} 21... Rd7 {[%clk 0:02:06.9]}
22. b4 {[%clk 0:02:14.1]} 22... Qd8 {[%clk 0:02:05.4]} 23. Be4 {[%clk 0:01:39]}
23... Bd5 {[%clk 0:02:02]} 24. Bxd5 {[%clk 0:01:37.1]} 24... Rxd5 {[%clk
0:02:02.9]} 25. Rad1 {[%clk 0:01:36.7]} 25... e5 {[%clk 0:01:56.4]} 26. a5
{[%clk 0:01:33.7]} 26... Qd7 {[%clk 0:01:53.5]} 27. c4 {[%clk 0:01:33.7]} 27...
Rxd1 {[%clk 0:01:48.8]} 28. Rxd1 {[%clk 0:01:34.6]} 28... Qg4 {[%clk 0:01:46.2]}
29. Rd6 {[%clk 0:01:29.8]} 29... Bf8 {[%clk 0:01:43]} 30. Rd2 {[%clk 0:01:24.4]}
30... h5 {[%clk 0:01:39.7]} 31. Kg2 {[%clk 0:01:18.6]} 31... e4 {[%clk
0:01:35.4]} 32. Qd1 {[%clk 0:01:17.4]} 32... Qf5 {[%clk 0:01:33.5]} 33. Rd7
{[%clk 0:01:15.8]} 33... h4 {[%clk 0:01:32.7]} 34. h3 {[%clk 0:01:10.2]} 34...
hxg3 {[%clk 0:01:31.9]} 35. fxg3 {[%clk 0:01:11.1]} 35... Qf6 {[%clk 0:01:22.1]}
36. Qd4 {[%clk 0:00:50.8]} 36... Qf3+ {[%clk 0:01:18.6]} 37. Kh2 {[%clk
0:00:49.5]} 37... Re8 {[%clk 0:01:17]} 38. Qd2 {[%clk 0:00:46.8]} 38... Re5
{[%clk 0:01:07]} 39. Qf2 {[%clk 0:00:28.6]} 39... Rf5 {[%clk 0:01:04.1]} 40. Rd2
{[%clk 0:00:10.7]} 40... Qh5 {[%clk 0:01:03]} 41. Qe2 {[%clk 0:00:10.4]} 41...
Rf3 {[%clk 0:01:03.1]} 42. Bf4 {[%clk 0:00:08.7]} 42... Qf5 {[%clk 0:00:54.7]}
43. Rd8 {[%clk 0:00:07]} 43... g5 {[%clk 0:00:49.9]} 44. Qd2 {[%clk 0:00:07.1]}
44... gxf4 {[%clk 0:00:48.6]} 45. Qd6 {[%clk 0:00:07.6]} 45... fxg3+ {[%clk
0:00:47.2]} 46. Kh1 {[%clk 0:00:06.9]} 46... Rf1+ {[%clk 0:00:46.9]} 0-1

[Event "*** Titled Tuesday Blitz"]
[Site "Chess.com"]
[Date "2021.04.06"]
[Round "1"]
[White "MarkoPe"]
[Black "iamnotIM"]
[Result "1-0"]
[WhiteElo "2264"]
[BlackElo "2539"]
[TimeControl "180+1"]
[EndTime "10:07:09 PDT"]
[Termination "MarkoPe won by resignation"]

1. e4 {[%clk 0:02:58.8]} 1... e5 {[%clk 0:02:58.9]} 2. Nf3 {[%clk 0:02:57.2]}
2... Nf6 {[%clk 0:02:59.1]} 3. Nxe5 {[%clk 0:02:56.8]} 3... d6 {[%clk 0:02:59]}
4. Nf3 {[%clk 0:02:56.5]} 4... Nxe4 {[%clk 0:02:59.3]} 5. Nc3 {[%clk 0:02:57.3]}
5... Nxc3 {[%clk 0:02:56.1]} 6. dxc3 {[%clk 0:02:58.2]} 6... Be7 {[%clk
0:02:54.3]} 7. Be3 {[%clk 0:02:58.1]} 7... Nd7 {[%clk 0:02:53.3]} 8. Qd2 {[%clk
0:02:53.6]} 8... Nf6 {[%clk 0:02:51.2]} 9. O-O-O {[%clk 0:02:49.6]} 9... O-O
{[%clk 0:02:50.6]} 10. h4 {[%clk 0:02:43.2]} 10... c5 {[%clk 0:02:33.5]} 11. Kb1
{[%clk 0:02:34.7]} 11... Qa5 {[%clk 0:02:24.1]} 12. h5 {[%clk 0:02:27.9]} 12...
Be6 {[%clk 0:02:13.1]} 13. a3 {[%clk 0:02:16.4]} 13... Ne4 {[%clk 0:01:44.3]}
14. Qe1 {[%clk 0:02:08.3]} 14... d5 {[%clk 0:01:40.8]} 15. Bd3 {[%clk
0:01:56.8]} 15... b5 {[%clk 0:01:28.7]} 16. Bxe4 {[%clk 0:01:51.5]} 16... dxe4
{[%clk 0:01:29.6]} 17. Ng5 {[%clk 0:01:52.1]} 17... Bxg5 {[%clk 0:01:14]} 18.
Bxg5 {[%clk 0:01:50.7]} 18... b4 {[%clk 0:01:13.8]} 19. cxb4 {[%clk 0:01:41.6]}
19... cxb4 {[%clk 0:01:14.7]} 20. Be7 {[%clk 0:01:42.2]} 20... Rfb8 {[%clk
0:00:48.1]} 21. Bxb4 {[%clk 0:01:39.6]} 21... Qa4 {[%clk 0:00:38.2]} 22. Qe3
{[%clk 0:00:54.6]} 22... a5 {[%clk 0:00:32.5]} 23. Bd6 {[%clk 0:00:54.4]} 23...
Qc4 {[%clk 0:00:29]} 24. b3 {[%clk 0:00:49.8]} 24... a4 {[%clk 0:00:25.8]} 25.
Bxb8 {[%clk 0:00:46.8]} 25... Rxb8 {[%clk 0:00:22.9]} 26. Qd4 {[%clk 0:00:39.2]}
26... Qc8 {[%clk 0:00:16]} 27. Qxa4 {[%clk 0:00:34.9]} 27... Qc3 {[%clk
0:00:10.2]} 28. Qd4 {[%clk 0:00:29.6]} 28... Qc8 {[%clk 0:00:09.3]} 29. Qxe4
{[%clk 0:00:24.2]} 29... Rxb3+ {[%clk 0:00:07.6]} 30. cxb3 {[%clk 0:00:25.1]}
30... Bf5 {[%clk 0:00:08]} 31. Rd8+ {[%clk 0:00:17.3]} 31... Qxd8 {[%clk
0:00:08.2]} 32. Qxf5 {[%clk 0:00:17.8]} 1-0